[Event "*** MasterClass Titled Tuesday Blitz"]
[Site "Chess.com"]
[Date "2017.07.04"]
[Round "7"]
[White "ehrenfeld"]
[Black "Iball95"]
[Result "0-1"]
[WhiteElo "2394"]
[BlackElo "2521"]
[TimeControl "180+2"]
[EndTime "14:36:10 PDT"]
[Termination "Iball95 won by resignation"]

1. e4 {[%clk 0:03:01.9]} 1... c5 {[%clk 0:03:00.4]} 2. Nf3 {[%clk 0:03:02.4]}
2... Nc6 {[%clk 0:03:01.8]} 3. Bb5 {[%clk 0:03:03.2]} 3... d6 {[%clk 0:03:02]}
4. O-O {[%clk 0:03:01.5]} 4... Bd7 {[%clk 0:03:02.8]} 5. Re1 {[%clk 0:03:01.8]}
5... Nf6 {[%clk 0:03:02.9]} 6. c3 {[%clk 0:03:02.1]} 6... a6 {[%clk 0:03:04]} 7.
Bf1 {[%clk 0:03:02]} 7... Bg4 {[%clk 0:03:04.2]} 8. h3 {[%clk 0:03:02]} 8...
Bxf3 {[%clk 0:03:05.2]} 9. Qxf3 {[%clk 0:03:02.3]} 9... g6 {[%clk 0:03:05.4]}
10. Qd1 {[%clk 0:02:59.9]} 10... Bg7 {[%clk 0:03:03.8]} 11. d4 {[%clk
0:02:54.3]} 11... O-O {[%clk 0:03:03.2]} 12. d5 {[%clk 0:02:53.9]} 12... Ne5
{[%clk 0:02:59]} 13. Nd2 {[%clk 0:02:51.7]} 13... b5 {[%clk 0:02:58.7]} 14. a4
{[%clk 0:02:48.2]} 14... Rb8 {[%clk 0:02:57.4]} 15. axb5 {[%clk 0:02:48.3]}
15... axb5 {[%clk 0:02:59.3]} 16. f4 {[%clk 0:02:44.1]} 16... Ned7 {[%clk
0:02:59.5]} 17. Nf3 {[%clk 0:02:44.5]} 17... Qb6 {[%clk 0:02:55.2]} 18. e5
{[%clk 0:02:32.9]} 18... Ne8 {[%clk 0:02:50.1]} 19. e6 {[%clk 0:01:59.8]} 19...
fxe6 {[%clk 0:02:44]} 20. Rxe6 {[%clk 0:02:00.4]} 20... Bf6 {[%clk 0:02:34.1]}
21. h4 {[%clk 0:01:44.4]} 21... Nc7 {[%clk 0:02:33.8]} 22. Re1 {[%clk
0:01:43.5]} 22... Qb7 {[%clk 0:02:34.6]} 23. g3 {[%clk 0:00:57.4]} 23... Qxd5
{[%clk 0:02:29.5]} 24. Qe2 {[%clk 0:00:53.7]} 24... b4 {[%clk 0:02:22.4]} 25. c4
{[%clk 0:00:49.7]} 25... Qf5 {[%clk 0:01:55.4]} 26. Ra7 {[%clk 0:00:47.8]} 26...
Ne8 {[%clk 0:01:40]} 27. Kh2 {[%clk 0:00:46.8]} 27... Nb6 {[%clk 0:01:35.7]} 28.
Bh3 {[%clk 0:00:44.5]} 28... Qb1 {[%clk 0:01:31.6]} 29. f5 {[%clk 0:00:23.9]}
29... gxf5 {[%clk 0:01:14.1]} 30. Bh6 {[%clk 0:00:23.5]} 30... Qe4 {[%clk
0:01:11.2]} 31. Bxf8 {[%clk 0:00:22.5]} 31... Qxe2+ {[%clk 0:01:05.9]} 32. Rxe2
{[%clk 0:00:23]} 32... Kxf8 {[%clk 0:01:07.4]} 33. Bxf5 {[%clk 0:00:23.3]} 33...
Nxc4 {[%clk 0:01:08.2]} 34. Ng5 {[%clk 0:00:20.7]} 34... Bxg5 {[%clk 0:01:03.9]}
35. hxg5 {[%clk 0:00:21]} 35... Ne5 {[%clk 0:01:04.9]} 36. Be6 {[%clk
0:00:21.8]} 36... Nf3+ {[%clk 0:00:58.2]} 37. Kg2 {[%clk 0:00:21.1]} 37... Nxg5
{[%clk 0:01:00.1]} 38. Rf2+ {[%clk 0:00:22.1]} 38... Nf6 {[%clk 0:00:59.2]} 39.
Bb3 {[%clk 0:00:19.9]} 39... Ne4 {[%clk 0:00:52.6]} 40. Rf4 {[%clk 0:00:20.4]}
40... Rd8 {[%clk 0:00:47.6]} 41. Bd5 {[%clk 0:00:19.9]} 41... Ng5 {[%clk
0:00:47.6]} 42. Rxf6+ {[%clk 0:00:20.2]} 42... exf6 {[%clk 0:00:47.5]} 43. g4
{[%clk 0:00:19.7]} 43... Re8 {[%clk 0:00:47.8]} 44. Kg3 {[%clk 0:00:20.5]} 44...
Re5 {[%clk 0:00:47.1]} 45. Bb3 {[%clk 0:00:19.2]} 45... Re3+ {[%clk 0:00:47]}
0-1

[Event "*** MasterClass Titled Tuesday Blitz"]
[Site "Chess.com"]
[Date "2017.07.04"]
[Round "7"]
[White "Fandorine"]
[Black "popov_m"]
[Result "1-0"]
[WhiteElo "2667"]
[BlackElo "2407"]
[TimeControl "180+2"]
[EndTime "14:36:20 PDT"]
[Termination "Fandorine won by resignation"]

1. e4 {[%clk 0:02:52.4]} 1... e6 {[%clk 0:02:57.7]} 2. d3 {[%clk 0:02:52.9]}
2... d5 {[%clk 0:02:57.1]} 3. Nd2 {[%clk 0:02:54]} 3... Nf6 {[%clk 0:02:56.4]}
4. Ngf3 {[%clk 0:02:55.1]} 4... c5 {[%clk 0:02:52.7]} 5. g3 {[%clk 0:02:55.8]}
5... g6 {[%clk 0:02:49.5]} 6. Bg2 {[%clk 0:02:56.7]} 6... Bg7 {[%clk 0:02:50.9]}
7. O-O {[%clk 0:02:57.7]} 7... O-O {[%clk 0:02:52.5]} 8. Re1 {[%clk 0:02:55.8]}
8... Nc6 {[%clk 0:02:39.1]} 9. c3 {[%clk 0:02:55]} 9... b5 {[%clk 0:02:17.3]}
10. exd5 {[%clk 0:02:21.3]} 10... exd5 {[%clk 0:02:16.1]} 11. Nb3 {[%clk
0:02:22.3]} 11... c4 {[%clk 0:01:38.3]} 12. Nbd4 {[%clk 0:02:21.1]} 12... Nxd4
{[%clk 0:01:22.1]} 13. Nxd4 {[%clk 0:02:23]} 13... Qd7 {[%clk 0:01:13.6]} 14. a4
{[%clk 0:02:19.7]} 14... bxa4 {[%clk 0:01:01.9]} 15. dxc4 {[%clk 0:02:20.4]}
15... Bb7 {[%clk 0:01:02.9]} 16. Qxa4 {[%clk 0:02:14.8]} 16... Rfe8 {[%clk
0:00:47.2]} 17. Rxe8+ {[%clk 0:02:08]} 17... Rxe8 {[%clk 0:00:47.1]} 18. Be3
{[%clk 0:02:08.4]} 18... Qg4 {[%clk 0:00:22.5]} 19. Qxa7 {[%clk 0:01:50.5]}
19... Bc8 {[%clk 0:00:16.9]} 20. cxd5 {[%clk 0:01:42.5]} 20... Qh5 {[%clk
0:00:16.7]} 21. h4 {[%clk 0:01:28.4]} 21... Ng4 {[%clk 0:00:14.6]} 22. Bf4
{[%clk 0:01:24]} 22... Be5 {[%clk 0:00:06.4]} 23. Re1 {[%clk 0:01:14.9]} 23...
Rf8 {[%clk 0:00:04.6]} 24. Bxe5 {[%clk 0:01:14.6]} 24... Nxe5 {[%clk 0:00:06.5]}
25. Qe7 {[%clk 0:01:06.1]} 25... Nd3 {[%clk 0:00:07.4]} 26. Bf3 {[%clk
0:00:29.1]} 26... Qh6 {[%clk 0:00:05.8]} 27. Qe3 {[%clk 0:00:27.6]} 27... Qxe3
{[%clk 0:00:05.1]} 28. Rxe3 {[%clk 0:00:28.5]} 28... Nxb2 {[%clk 0:00:06.8]} 29.
Nc6 {[%clk 0:00:28.2]} 29... Nc4 {[%clk 0:00:06.8]} 30. Re4 {[%clk 0:00:28.1]}
30... Nd6 {[%clk 0:00:07.6]} 31. Rd4 {[%clk 0:00:24.6]} 31... Nb5 {[%clk
0:00:06.7]} 32. Rd3 {[%clk 0:00:23.2]} 32... Bf5 {[%clk 0:00:07.6]} 33. Ne7+
{[%clk 0:00:24.2]} 33... Kg7 {[%clk 0:00:08.9]} 34. Nxf5+ {[%clk 0:00:25.6]}
34... gxf5 {[%clk 0:00:10.8]} 35. c4 {[%clk 0:00:27.1]} 35... Nc7 {[%clk
0:00:06.7]} 36. c5 {[%clk 0:00:26.7]} 36... Kf6 {[%clk 0:00:08.1]} 37. d6 {[%clk
0:00:26.7]} 37... Ne6 {[%clk 0:00:09]} 38. c6 {[%clk 0:00:28]} 38... Ke5 {[%clk
0:00:09]} 39. c7 {[%clk 0:00:26.3]} 39... Nc5 {[%clk 0:00:09.3]} 40. Rd5+ {[%clk
0:00:27.2]} 1-0

[Event "*** MasterClass Titled Tuesday Blitz"]
[Site "Chess.com"]
[Date "2017.07.04"]
[Round "7"]
[White "spirals5"]
[Black "Lord_Neezy"]
[Result "1-0"]
[WhiteElo "2399"]
[BlackElo "2183"]
[TimeControl "180+2"]
[EndTime "14:36:50 PDT"]
[Termination "spirals5 won by resignation"]

1. e4 {[%clk 0:03:01.9]} 1... e6 {[%clk 0:03:01]} 2. Nc3 {[%clk 0:03:01.7]} 2...
d5 {[%clk 0:02:59.9]} 3. Nf3 {[%clk 0:03:00]} 3... Nf6 {[%clk 0:02:47.8]} 4.
exd5 {[%clk 0:02:59.8]} 4... exd5 {[%clk 0:02:46.5]} 5. d4 {[%clk 0:02:59.5]}
5... h6 {[%clk 0:02:43.1]} 6. Bd3 {[%clk 0:02:59.3]} 6... Bd6 {[%clk 0:02:43.8]}
7. O-O {[%clk 0:02:59.5]} 7... O-O {[%clk 0:02:44.3]} 8. h3 {[%clk 0:02:59.8]}
8... c6 {[%clk 0:02:39.1]} 9. a3 {[%clk 0:02:59.8]} 9... Re8 {[%clk 0:02:39]}
10. Re1 {[%clk 0:02:59.5]} 10... Be6 {[%clk 0:02:32.2]} 11. Be3 {[%clk
0:02:58.2]} 11... Nbd7 {[%clk 0:02:32.8]} 12. Qd2 {[%clk 0:02:58.2]} 12... c5
{[%clk 0:02:18.5]} 13. dxc5 {[%clk 0:02:45.1]} 13... Nxc5 {[%clk 0:02:19.3]} 14.
Bf4 {[%clk 0:02:37.4]} 14... Nxd3 {[%clk 0:02:12.1]} 15. cxd3 {[%clk 0:02:37.4]}
15... Bf5 {[%clk 0:02:04.3]} 16. Rxe8+ {[%clk 0:02:32.7]} 16... Nxe8 {[%clk
0:02:04.3]} 17. Nxd5 {[%clk 0:02:30.3]} 17... Bxf4 {[%clk 0:01:18.4]} 18. Nxf4
{[%clk 0:02:29]} 18... Qd6 {[%clk 0:01:08.6]} 19. d4 {[%clk 0:02:19.8]} 19...
Rd8 {[%clk 0:01:02.5]} 20. Rd1 {[%clk 0:02:18.2]} 20... Nf6 {[%clk 0:00:56.6]}
21. Ne5 {[%clk 0:02:09.2]} 21... Ne4 {[%clk 0:00:47.8]} 22. Qb4 {[%clk 0:01:45]}
22... Qxb4 {[%clk 0:00:35.4]} 23. axb4 {[%clk 0:01:45]} 23... f6 {[%clk
0:00:29]} 24. Nc4 {[%clk 0:01:39.4]} 24... g5 {[%clk 0:00:21.8]} 25. Ne3 {[%clk
0:01:33.7]} 25... Bd7 {[%clk 0:00:16.7]} 26. Nfd5 {[%clk 0:01:30.5]} 26... Kf7
{[%clk 0:00:17.7]} 27. f3 {[%clk 0:01:30]} 27... Nd6 {[%clk 0:00:16.3]} 28. Nc3
{[%clk 0:01:21.6]} 28... Be6 {[%clk 0:00:12.5]} 29. d5 {[%clk 0:01:20.7]} 29...
Bd7 {[%clk 0:00:14]} 30. Kf2 {[%clk 0:01:20.3]} 30... Rc8 {[%clk 0:00:13.4]} 31.
Rd4 {[%clk 0:01:14.7]} 31... Bf5 {[%clk 0:00:12]} 32. g4 {[%clk 0:01:03.3]}
32... Bd7 {[%clk 0:00:09.4]} 33. Ne4 {[%clk 0:00:57.4]} 33... Nb5 {[%clk
0:00:09.7]} 34. Rc4 {[%clk 0:00:55.8]} 34... Rxc4 {[%clk 0:00:08.7]} 35. Nxc4
{[%clk 0:00:55.5]} 35... Ke7 {[%clk 0:00:10.6]} 36. Ke3 {[%clk 0:00:52.9]} 36...
f5 {[%clk 0:00:11.6]} 37. d6+ {[%clk 0:00:43.7]} 37... Kf7 {[%clk 0:00:09.3]}
38. Nc5 {[%clk 0:00:40.7]} 38... Be6 {[%clk 0:00:08.6]} 39. Nxe6 {[%clk
0:00:36.9]} 39... Kxe6 {[%clk 0:00:09.5]} 40. gxf5+ {[%clk 0:00:36.9]} 40... Kd7
{[%clk 0:00:10.2]} 41. Ke4 {[%clk 0:00:25.5]} 41... Nxd6+ {[%clk 0:00:11.1]} 42.
Nxd6 {[%clk 0:00:25.7]} 42... Kxd6 {[%clk 0:00:13]} 43. b5 {[%clk 0:00:24.1]}
43... h5 {[%clk 0:00:07.6]} 44. b4 {[%clk 0:00:21.3]} 44... h4 {[%clk
0:00:07.5]} 45. Kd4 {[%clk 0:00:19.9]} 45... Kd7 {[%clk 0:00:03.3]} 46. Ke5
{[%clk 0:00:20.1]} 46... Ke7 {[%clk 0:00:04.7]} 47. f6+ {[%clk 0:00:20.5]} 47...
Kf7 {[%clk 0:00:05.5]} 48. Kf5 {[%clk 0:00:20.7]} 1-0

[Event "*** MasterClass Titled Tuesday Blitz"]
[Site "Chess.com"]
[Date "2017.07.04"]
[Round "7"]
[White "Wolverine_master"]
[Black "AndrewDGreen"]
[Result "0-1"]
[WhiteElo "1965"]
[BlackElo "2176"]
[TimeControl "180+2"]
[EndTime "14:36:56 PDT"]
[Termination "AndrewDGreen won by checkmate"]

1. e4 {[%clk 0:03:01.9]} 1... Nf6 {[%clk 0:02:59.5]} 2. e5 {[%clk 0:03:02.8]}
2... Nd5 {[%clk 0:03:00.5]} 3. d4 {[%clk 0:03:04.4]} 3... d6 {[%clk 0:03:01]} 4.
c4 {[%clk 0:03:05.7]} 4... Nb6 {[%clk 0:03:01.3]} 5. f4 {[%clk 0:03:05.6]} 5...
dxe5 {[%clk 0:03:01.4]} 6. fxe5 {[%clk 0:03:07]} 6... Nc6 {[%clk 0:03:02.6]} 7.
Be3 {[%clk 0:03:06.6]} 7... Bf5 {[%clk 0:03:03.2]} 8. Nc3 {[%clk 0:02:39.8]}
8... e6 {[%clk 0:03:02.7]} 9. Be2 {[%clk 0:02:31.5]} 9... Qd7 {[%clk 0:02:50.1]}
10. Nf3 {[%clk 0:02:32.3]} 10... O-O-O {[%clk 0:02:38]} 11. O-O {[%clk
0:02:27.4]} 11... Bg4 {[%clk 0:02:38.3]} 12. Ng5 {[%clk 0:01:55.5]} 12... Bxe2
{[%clk 0:02:16.7]} 13. Nxe2 {[%clk 0:01:30.8]} 13... f6 {[%clk 0:02:09.4]} 14.
exf6 {[%clk 0:01:23.4]} 14... gxf6 {[%clk 0:02:11.3]} 15. c5 {[%clk 0:01:19.4]}
15... Nd5 {[%clk 0:02:08.6]} 16. Bc1 {[%clk 0:00:54.9]} 16... fxg5 {[%clk
0:01:08.6]} 17. Bxg5 {[%clk 0:00:56.8]} 17... Be7 {[%clk 0:01:03.3]} 18. Bd2
{[%clk 0:00:51.6]} 18... Rhg8 {[%clk 0:01:00.7]} 19. a3 {[%clk 0:00:52.1]} 19...
Rdf8 {[%clk 0:00:47.9]} 20. b4 {[%clk 0:00:51.6]} 20... Nf6 {[%clk 0:00:45.5]}
21. Bc3 {[%clk 0:00:46.5]} 21... Nd5 {[%clk 0:00:43.3]} 22. Bd2 {[%clk
0:00:41.5]} 22... Bf6 {[%clk 0:00:39.4]} 23. Bc1 {[%clk 0:00:35]} 23... Qg7
{[%clk 0:00:34.9]} 24. Ng3 {[%clk 0:00:13.4]} 24... Bxd4+ {[%clk 0:00:32.5]} 25.
Kh1 {[%clk 0:00:14.8]} 25... Bxa1 {[%clk 0:00:31.4]} 26. Rxf8+ {[%clk
0:00:15.5]} 26... Rxf8 {[%clk 0:00:30.2]} 27. b5 {[%clk 0:00:17]} 27... Nd4
{[%clk 0:00:29.4]} 28. c6 {[%clk 0:00:13.7]} 28... bxc6 {[%clk 0:00:29.4]} 29.
bxc6 {[%clk 0:00:14.6]} 29... Nxc6 {[%clk 0:00:29.8]} 30. Bd2 {[%clk 0:00:05.1]}
30... Bd4 {[%clk 0:00:28.3]} 31. Qa4 {[%clk 0:00:05.3]} 31... Kb7 {[%clk
0:00:20.9]} 32. Qb5+ {[%clk 0:00:05.8]} 32... Nb6 {[%clk 0:00:20.6]} 33. a4
{[%clk 0:00:07.1]} 33... a6 {[%clk 0:00:20.8]} 34. Qd3 {[%clk 0:00:07.7]} 34...
Qe5 {[%clk 0:00:19.8]} 35. a5 {[%clk 0:00:08.1]} 35... Nd5 {[%clk 0:00:16.5]}
36. Qb3+ {[%clk 0:00:08.1]} 36... Ka7 {[%clk 0:00:16]} 37. Qa4 {[%clk
0:00:06.5]} 37... Qd6 {[%clk 0:00:13.2]} 38. Qa2 {[%clk 0:00:03.2]} 38... Ndb4
{[%clk 0:00:12.5]} 39. Bxb4 {[%clk 0:00:03.5]} 39... Nxb4 {[%clk 0:00:14.4]} 40.
h3 {[%clk 0:00:04.8]} 40... Qxg3 {[%clk 0:00:12.2]} 41. Qe2 {[%clk 0:00:02.8]}
41... e5 {[%clk 0:00:10.6]} 42. h4 {[%clk 0:00:03.4]} 42... Qxh4# {[%clk
0:00:10.5]} 0-1

[Event "*** MasterClass Titled Tuesday Blitz"]
[Site "Chess.com"]
[Date "2017.07.04"]
[Round "7"]
[White "Witik"]
[Black "Hikaru"]
[Result "1-0"]
[WhiteElo "2554"]
[BlackElo "2937"]
[TimeControl "180+2"]
[EndTime "14:37:02 PDT"]
[Termination "Witik won on time"]

1. d4 {[%clk 0:03:00.8]} 1... f5 {[%clk 0:02:59]} 2. g3 {[%clk 0:03:00.4]} 2...
Nf6 {[%clk 0:02:59.9]} 3. Bg2 {[%clk 0:03:01.3]} 3... g6 {[%clk 0:03:01.8]} 4.
c3 {[%clk 0:03:01.7]} 4... Bg7 {[%clk 0:03:03.7]} 5. Qb3 {[%clk 0:03:01.5]} 5...
c6 {[%clk 0:03:04.8]} 6. Nd2 {[%clk 0:03:00.7]} 6... Qb6 {[%clk 0:03:06]} 7. Nh3
{[%clk 0:03:00]} 7... Qxb3 {[%clk 0:03:06.6]} 8. axb3 {[%clk 0:03:00.2]} 8...
O-O {[%clk 0:03:07.5]} 9. b4 {[%clk 0:02:51.3]} 9... Na6 {[%clk 0:03:04]} 10.
Nf4 {[%clk 0:02:50.8]} 10... Nc7 {[%clk 0:03:04]} 11. O-O {[%clk 0:02:50.1]}
11... d6 {[%clk 0:03:04.8]} 12. Nc4 {[%clk 0:02:47.7]} 12... g5 {[%clk
0:03:03.1]} 13. Nd3 {[%clk 0:02:48.2]} 13... h6 {[%clk 0:03:02.1]} 14. Na5
{[%clk 0:02:42.4]} 14... Rb8 {[%clk 0:03:02.3]} 15. f3 {[%clk 0:02:33]} 15...
Be6 {[%clk 0:03:00.1]} 16. e4 {[%clk 0:02:31]} 16... Nd7 {[%clk 0:03:00.4]} 17.
Bd2 {[%clk 0:02:27.3]} 17... Nb6 {[%clk 0:03:00.6]} 18. Rae1 {[%clk 0:02:20.5]}
18... fxe4 {[%clk 0:03:00.9]} 19. fxe4 {[%clk 0:02:19.1]} 19... Nc4 {[%clk
0:02:48.1]} 20. d5 {[%clk 0:02:15.5]} 20... Rxf1+ {[%clk 0:02:46.7]} 21. Rxf1
{[%clk 0:02:04.9]} 21... Nxd2 {[%clk 0:02:48.6]} 22. Rd1 {[%clk 0:02:05.5]}
22... cxd5 {[%clk 0:02:39.1]} 23. exd5 {[%clk 0:02:04.6]} 23... Bxd5 {[%clk
0:02:37.5]} 24. Bxd5+ {[%clk 0:02:02]} 24... Nxd5 {[%clk 0:02:39.4]} 25. Rxd2
{[%clk 0:02:02.7]} 25... Nc7 {[%clk 0:02:37.2]} 26. Kg2 {[%clk 0:02:00.7]} 26...
Bf6 {[%clk 0:02:37.5]} 27. Nf2 {[%clk 0:01:59.2]} 27... d5 {[%clk 0:02:38.1]}
28. Nb3 {[%clk 0:01:55.1]} 28... Rd8 {[%clk 0:02:37.3]} 29. Na5 {[%clk
0:01:53.8]} 29... b6 {[%clk 0:02:32.3]} 30. Nc6 {[%clk 0:01:54.4]} 30... Rd6
{[%clk 0:02:33.8]} 31. Nxa7 {[%clk 0:01:52.9]} 31... b5 {[%clk 0:02:35.2]} 32.
Nd3 {[%clk 0:01:46.7]} 32... d4 {[%clk 0:02:31.9]} 33. cxd4 {[%clk 0:01:37.6]}
33... Rxd4 {[%clk 0:02:30.7]} 34. Nc6 {[%clk 0:01:34.1]} 34... Rd6 {[%clk
0:02:31.4]} 35. Na5 {[%clk 0:01:33.9]} 35... Nd5 {[%clk 0:02:32.4]} 36. Nb7
{[%clk 0:01:30.3]} 36... Rb6 {[%clk 0:02:19.6]} 37. Nbc5 {[%clk 0:01:28.5]}
37... Ne3+ {[%clk 0:02:17.8]} 38. Kf3 {[%clk 0:01:28.9]} 38... Nc4 {[%clk
0:02:19.7]} 39. Re2 {[%clk 0:01:27.7]} 39... Rd6 {[%clk 0:02:20.4]} 40. b3
{[%clk 0:01:27.1]} 40... Nb6 {[%clk 0:02:21.7]} 41. Nf2 {[%clk 0:01:24.6]} 41...
Rd4 {[%clk 0:02:06.6]} 42. Re4 {[%clk 0:01:20.5]} 42... h5 {[%clk 0:02:00.6]}
43. g4 {[%clk 0:01:16.4]} 43... Nd5 {[%clk 0:01:44.9]} 44. gxh5 {[%clk
0:01:15.4]} 44... Nxb4 {[%clk 0:01:44.8]} 45. Ne6 {[%clk 0:01:13.7]} 45... Rxe4
{[%clk 0:01:38.8]} 46. Kxe4 {[%clk 0:01:14.7]} 46... Kh7 {[%clk 0:01:31.2]} 47.
Ng4 {[%clk 0:01:15.3]} 47... Nc2 {[%clk 0:01:28]} 48. Kf5 {[%clk 0:01:09.2]}
48... b4 {[%clk 0:01:28.8]} 49. h6 {[%clk 0:01:05.6]} 49... Na1 {[%clk
0:01:26.3]} 50. Nf8+ {[%clk 0:01:04.3]} 50... Kg8 {[%clk 0:01:23.9]} 51. Nxf6+
{[%clk 0:00:50.1]} 51... exf6 {[%clk 0:01:24]} 52. Kg6 {[%clk 0:00:47.2]} 1-0

[Event "*** MasterClass Titled Tuesday Blitz"]
[Site "Chess.com"]
[Date "2017.07.04"]
[Round "7"]
[White "SergeiAza"]
[Black "Keranke"]
[Result "1-0"]
[WhiteElo "2722"]
[BlackElo "2646"]
[TimeControl "180+2"]
[EndTime "14:37:04 PDT"]
[Termination "SergeiAza won by resignation"]

1. e4 {[%clk 0:03:01.9]} 1... g6 {[%clk 0:02:57.2]} 2. d4 {[%clk 0:03:01.6]}
2... Bg7 {[%clk 0:02:58.6]} 3. Nf3 {[%clk 0:03:02.2]} 3... d6 {[%clk 0:02:59.9]}
4. Nc3 {[%clk 0:03:02.5]} 4... a6 {[%clk 0:02:59.5]} 5. Be3 {[%clk 0:03:02.3]}
5... b5 {[%clk 0:03:00.6]} 6. Bd3 {[%clk 0:03:01.8]} 6... Bb7 {[%clk 0:03:01.7]}
7. Qd2 {[%clk 0:02:59.8]} 7... Nd7 {[%clk 0:03:02.2]} 8. a4 {[%clk 0:02:50.3]}
8... b4 {[%clk 0:03:02.4]} 9. Ne2 {[%clk 0:02:50.7]} 9... c5 {[%clk 0:03:03.3]}
10. c3 {[%clk 0:02:50.8]} 10... bxc3 {[%clk 0:02:56.8]} 11. bxc3 {[%clk
0:02:49.8]} 11... Ngf6 {[%clk 0:02:53.9]} 12. Ng3 {[%clk 0:02:49.7]} 12... d5
{[%clk 0:02:50.2]} 13. e5 {[%clk 0:02:40]} 13... Ne4 {[%clk 0:02:48.9]} 14. Bxe4
{[%clk 0:02:36]} 14... dxe4 {[%clk 0:02:50.8]} 15. Ng5 {[%clk 0:02:34.7]} 15...
Nb6 {[%clk 0:02:46.1]} 16. e6 {[%clk 0:02:17.3]} 16... f5 {[%clk 0:02:31.5]} 17.
Nf7 {[%clk 0:02:14]} 17... Qd5 {[%clk 0:02:32]} 18. Nxh8 {[%clk 0:02:09.2]}
18... Nc4 {[%clk 0:02:32]} 19. Qa2 {[%clk 0:01:42.1]} 19... Bxh8 {[%clk
0:02:25.7]} 20. Ne2 {[%clk 0:01:36.5]} 20... Qxe6 {[%clk 0:02:17.3]} 21. Nf4
{[%clk 0:01:34.9]} 21... Qf7 {[%clk 0:02:17]} 22. h4 {[%clk 0:01:23.1]} 22...
cxd4 {[%clk 0:01:58.6]} 23. cxd4 {[%clk 0:01:19.6]} 23... e5 {[%clk 0:02:00.2]}
24. dxe5 {[%clk 0:01:13.9]} 24... Bxe5 {[%clk 0:02:02.1]} 25. Rc1 {[%clk
0:00:58.8]} 25... Nxe3 {[%clk 0:01:48.9]} 26. Qxf7+ {[%clk 0:00:57.2]} 26...
Kxf7 {[%clk 0:01:50.8]} 27. fxe3 {[%clk 0:00:58]} 27... Rd8 {[%clk 0:01:44.2]}
28. Ke2 {[%clk 0:00:54.4]} 28... h6 {[%clk 0:01:25.3]} 29. Rc5 {[%clk
0:00:39.6]} 29... Bd6 {[%clk 0:01:00.4]} 30. Rd1 {[%clk 0:00:38.3]} 30... Ke8
{[%clk 0:00:30.2]} 31. Rc4 {[%clk 0:00:32.4]} 31... g5 {[%clk 0:00:21.2]} 32.
Ne6 {[%clk 0:00:28.5]} 32... Rd7 {[%clk 0:00:20.7]} 33. Rcd4 {[%clk 0:00:27.4]}
33... Ke7 {[%clk 0:00:21.3]} 34. Nc5 {[%clk 0:00:26.3]} 34... Rc7 {[%clk
0:00:16]} 35. Rxd6 {[%clk 0:00:26.2]} 35... Rxc5 {[%clk 0:00:17.9]} 36. Rd7+
{[%clk 0:00:27]} 36... Ke6 {[%clk 0:00:19.8]} 37. Rxb7 {[%clk 0:00:26.4]} 37...
f4 {[%clk 0:00:21.7]} 38. hxg5 {[%clk 0:00:16.5]} 38... hxg5 {[%clk 0:00:19.5]}
39. Rd4 {[%clk 0:00:16.9]} 39... Rc2+ {[%clk 0:00:19.9]} 40. Kf1 {[%clk
0:00:15.3]} 40... Rc1+ {[%clk 0:00:18.9]} 41. Kf2 {[%clk 0:00:15]} 41... Rc2+
{[%clk 0:00:20.1]} 42. Kg1 {[%clk 0:00:15.8]} 42... Kf5 {[%clk 0:00:18.7]} 43.
Rf7+ {[%clk 0:00:15.1]} 43... Kg4 {[%clk 0:00:19.9]} 44. exf4 {[%clk 0:00:14.2]}
44... Kg3 {[%clk 0:00:21.4]} 45. fxg5 {[%clk 0:00:14]} 45... Rxg2+ {[%clk
0:00:20.8]} 46. Kf1 {[%clk 0:00:13.9]} 46... e3 {[%clk 0:00:11.6]} 47. Re4
{[%clk 0:00:13.1]} 1-0

[Event "*** MasterClass Titled Tuesday Blitz"]
[Site "Chess.com"]
[Date "2017.07.04"]
[Round "7"]
[White "ruvat"]
[Black "NMJeevanK"]
[Result "1-0"]
[WhiteElo "2276"]
[BlackElo "2323"]
[TimeControl "180+2"]
[EndTime "14:37:32 PDT"]
[Termination "ruvat won by checkmate"]

1. d4 {[%clk 0:02:58.3]} 1... Nf6 {[%clk 0:02:58.9]} 2. c4 {[%clk 0:02:59.3]}
2... e6 {[%clk 0:03:00.8]} 3. g3 {[%clk 0:02:59.8]} 3... d5 {[%clk 0:03:02]} 4.
Nf3 {[%clk 0:03:01]} 4... c5 {[%clk 0:03:03.2]} 5. Bg2 {[%clk 0:03:02]} 5... Nc6
{[%clk 0:03:04.3]} 6. O-O {[%clk 0:03:02.6]} 6... cxd4 {[%clk 0:03:03.4]} 7.
cxd5 {[%clk 0:03:00.8]} 7... exd5 {[%clk 0:03:03.5]} 8. Nxd4 {[%clk 0:03:01.6]}
8... Be7 {[%clk 0:03:05]} 9. Nc3 {[%clk 0:03:02.1]} 9... O-O {[%clk 0:03:05.1]}
10. b3 {[%clk 0:03:02.6]} 10... Re8 {[%clk 0:03:03]} 11. Bb2 {[%clk 0:03:03.3]}
11... Bc5 {[%clk 0:03:03.4]} 12. Nxc6 {[%clk 0:02:40.4]} 12... bxc6 {[%clk
0:03:04.2]} 13. Rc1 {[%clk 0:02:39.9]} 13... Ba6 {[%clk 0:03:01.3]} 14. Rc2
{[%clk 0:02:31.5]} 14... Rc8 {[%clk 0:02:52.9]} 15. Na4 {[%clk 0:02:17.6]} 15...
Bd6 {[%clk 0:02:51.9]} 16. Bd4 {[%clk 0:02:14.1]} 16... Qe7 {[%clk 0:02:47.1]}
17. Re1 {[%clk 0:01:58.5]} 17... c5 {[%clk 0:02:47.3]} 18. Bxf6 {[%clk
0:01:57.1]} 18... Qxf6 {[%clk 0:02:48.5]} 19. Qxd5 {[%clk 0:01:46.4]} 19... Re5
{[%clk 0:02:32]} 20. Qf3 {[%clk 0:01:46.2]} 20... Qe7 {[%clk 0:02:30.6]} 21. Nc3
{[%clk 0:01:30.1]} 21... c4 {[%clk 0:02:17.4]} 22. Nd5 {[%clk 0:01:29.6]} 22...
Qe6 {[%clk 0:02:12.6]} 23. Nf4 {[%clk 0:01:26.4]} 23... Qf5 {[%clk 0:02:10.9]}
24. Rec1 {[%clk 0:01:16.2]} 24... Ba3 {[%clk 0:02:04.1]} 25. e4 {[%clk
0:01:10.3]} 25... Qf6 {[%clk 0:01:50]} 26. Rd1 {[%clk 0:01:08.8]} 26... h6
{[%clk 0:01:34.2]} 27. bxc4 {[%clk 0:01:08.1]} 27... Bc5 {[%clk 0:01:30.2]} 28.
Nd5 {[%clk 0:01:02.3]} 28... Qe6 {[%clk 0:01:26.4]} 29. Qd3 {[%clk 0:00:48.8]}
29... Rd8 {[%clk 0:01:10.6]} 30. Kh1 {[%clk 0:00:44.7]} 30... Kh8 {[%clk
0:01:10.6]} 31. f4 {[%clk 0:00:44.8]} 31... Rh5 {[%clk 0:01:09.5]} 32. e5 {[%clk
0:00:35.1]} 32... g5 {[%clk 0:00:58]} 33. Qe2 {[%clk 0:00:30.1]} 33... g4 {[%clk
0:00:55.4]} 34. h4 {[%clk 0:00:24.3]} 34... gxh3 {[%clk 0:00:51.2]} 35. Qxh5
{[%clk 0:00:22.7]} 35... hxg2+ {[%clk 0:00:52.5]} 36. Kxg2 {[%clk 0:00:22.9]}
36... Bxc4 {[%clk 0:00:53.2]} 37. Nf6 {[%clk 0:00:12.9]} 37... Qc6+ {[%clk
0:00:29]} 38. Kh2 {[%clk 0:00:12.8]} 38... Bg1+ {[%clk 0:00:14.6]} 39. Rxg1
{[%clk 0:00:09.6]} 39... Kg7 {[%clk 0:00:15.6]} 40. Qg4+ {[%clk 0:00:09.4]}
40... Kf8 {[%clk 0:00:15.9]} 41. Qh4 {[%clk 0:00:05.9]} 41... Qf3 {[%clk
0:00:13.6]} 42. Qxh6+ {[%clk 0:00:05.8]} 42... Ke7 {[%clk 0:00:14.3]} 43. Rcg2
{[%clk 0:00:04.7]} 43... Be6 {[%clk 0:00:14.5]} 44. Nh5 {[%clk 0:00:05.2]} 44...
Rg8 {[%clk 0:00:14.2]} 45. Qf6+ {[%clk 0:00:05.6]} 45... Ke8 {[%clk 0:00:15.5]}
46. Qh4 {[%clk 0:00:06.6]} 46... Rg6 {[%clk 0:00:08.7]} 47. Nf6+ {[%clk
0:00:07.4]} 47... Ke7 {[%clk 0:00:10.1]} 48. Ng4+ {[%clk 0:00:06.8]} 48... Kf8
{[%clk 0:00:08.8]} 49. Nf6 {[%clk 0:00:07.3]} 49... Ke7 {[%clk 0:00:04.8]} 50.
Rb1 {[%clk 0:00:08.4]} 50... Bf5 {[%clk 0:00:05.5]} 51. Nh5+ {[%clk 0:00:08.6]}
51... Kf8 {[%clk 0:00:04.8]} 52. Rb8+ {[%clk 0:00:08.1]} 52... Bc8 {[%clk
0:00:05.6]} 53. Rxc8# {[%clk 0:00:08.5]} 1-0